bitfinex/quotes_SOLUSD_20220130
["timestamp","ask_amount","ask_price","bid_price","bid_amount"]
[1643569706773,41.18200248,92.969,92.831,0.55]
[1643569706976,12.82,92.97,92.831,0.55]
[1643569707173,12.82,92.97,92.831,0.25]
[1643569707372,22.82,92.99,92.831,0.25]
[1643569707574,22.82,92.99,92.84,16.153]
[1643569707781,10.0,92.99,92.85,12.82]
[1643569707974,10.0,92.99,92.851,0.3]
[1643569708175,11.29,92.991,92.867,0.31852791]
[1643569708476,11.29,92.991,92.88,12.82]
[1643569708675,11.29,92.991,92.91,16.14]
[1643569708875,11.29,92.991,92.88,12.82]
[1643569708876,43.67952296,92.99,92.911,0.3]
[1643569709074,43.67952296,92.99,92.891,0.25]
[1643569709480,43.67952296,92.99,92.871,0.3]
[1643569709676,16.155,92.96,92.871,0.3]
[1643569709876,29.5869602,92.959,92.861,0.2]
[1643569710079,5.5,92.95,92.831,0.3]
[1643569710276,0.25,92.949,92.81,12.82]
[1643569710476,0.25,92.949,92.811,0.3]
[1643569710679,16.155,92.95,92.811,0.3]
[1643569710878,0.25,92.949,92.811,0.3]
[1643569711480,106.15,92.949,92.811,0.3]
[1643569711679,16.162,92.91,92.811,0.3]
[1643569711878,35.32172086,92.909,92.811,0.3]
[1643569712082,6.0,92.9,92.811,0.3]
[1643569712281,0.25,92.899,92.811,0.3]
[1643569712981,38.1947623,92.889,92.78,16.164]
[1643569713184,38.1947623,92.889,92.781,0.3]
[1643569713483,6.0,92.88,92.781,2.65832324]
[1643569713682,6.0,92.88,92.781,0.3]
[1643569713882,0.25,92.879,92.771,0.3]
[1643569714881,38.1947623,92.889,92.771,0.3]
[1643569714882,0.25,92.888,92.771,0.3]
[1643569715082,0.25,92.888,92.772,2.35832324]
[1643569715283,0.25,92.888,92.78,6.0]
[1643569715483,0.5274005,93.452,92.78,6.0]
[1643569715484,0.4,93.208,92.78,6.0]
[1643569715688,12.82,92.95,92.78,18.82]
[1643569715884,12.82,92.95,92.781,0.3]
[1643569716084,53.881,92.92,92.781,0.55]
[1643569716284,53.881,92.92,92.781,0.3]
[1643569716488,6.0,92.9,92.781,0.3]
[1643569716885,6.0,92.9,92.781,0.55]
[1643569717090,0.25,92.899,92.781,0.3]
[1643569717292,16.168,92.88,92.76,12.82]
[1643569717487,6.0,92.87,92.761,0.3]
[1643569717693,12.218011,92.869,92.745,0.3]
[1643569717888,0.25,92.869,92.736,0.3]
[1643569718091,39.3442249,92.859,92.736,0.3]
[1643569718291,16.175,92.83,92.736,0.3]
[1643569718489,6.0,92.82,92.736,0.3]
[1643569718890,0.25,92.819,92.736,0.3]
[1643569719692,0.25,92.819,92.714,8.53697518]
[1643569719895,0.25,92.819,92.702,0.3]
[1643569720090,16.179,92.81,92.701,2.3709329]
[1643569720290,0.25,92.809,92.701,2.6709329]
[1643569720489,6.0,92.8,92.701,2.6709329]
[1643569720691,11.31,92.8,92.701,2.6709329]
[1643569720890,11.31,92.8,92.726,2.3709329]
[1643569721291,11.31,92.8,92.711,2.3709329]
[1643569721491,11.31,92.8,92.72,16.175]
[1643569721691,12.82,92.88,92.726,2.3709329]
[1643569722093,105.9,92.869,92.717,17.60049478]
[1643569722292,105.9,92.869,92.726,18.17827256]
[1643569722293,2.95669142,92.864,92.726,18.17827256]
[1643569722497,2.95669142,92.864,92.73,6.0]
[1643569722693,105.9,92.869,92.73,6.0]
[1643569722894,105.9,92.869,92.731,18.17827256]
[1643569723092,105.9,92.869,92.74,6.0]
[1643569723294,105.9,92.869,92.75,12.82]
[1643569723495,10.0,92.93,92.751,0.3]
[1643569723694,34.88082716,92.922,92.76,6.0]
[1643569723894,35.56784185,92.908,92.77,28.985]
[1643569724092,35.56784185,92.908,92.771,0.3]
[1643569724293,168.63296521,92.907,92.771,0.55]
[1643569724493,105.9,92.906,92.771,0.3]
[1643569724694,117.08981151,92.906,92.69,6.0]
[1643569724994,6.0,92.9,92.72,12.82]
[1643569725197,18.82,92.9,92.721,0.3]
[1643569725394,18.82,92.9,92.73,6.0]
[1643569725595,28.984,92.9,92.77,16.166]
[1643569725795,16.164,92.9,92.771,0.55]
[1643569726194,16.164,92.9,92.771,0.25]
[1643569726397,16.164,92.9,92.771,0.55]
[1643569726594,105.9,92.906,92.79,16.162]
[1643569726801,105.9,92.906,92.791,0.55]
[1643569727098,35.56784185,92.908,92.791,2.93785869]
[1643569727299,241.30300588,92.926,92.792,2.38785869]
[1643569727498,241.30300588,92.926,92.8,6.0]
[1643569727700,241.30300588,92.926,92.81,12.82]
[1643569727895,241.30300588,92.926,92.84,16.154]
[1643569728098,241.30300588,92.926,92.841,0.3]
[1643569728297,43.94199469,92.925,92.841,0.3]
[1643569729196,0.25,92.924,92.841,0.3]
[1643569729698,105.9,92.924,92.841,0.3]
[1643569729896,105.9,92.924,92.841,0.55]
[1643569730397,105.9,92.924,92.841,0.3]
[1643569730598,16.16,92.92,92.841,0.3]
[1643569730800,106.15,92.919,92.841,0.3]
[1643569730999,6.0,92.91,92.821,0.3]
[1643569731201,6.0,92.91,92.791,0.3]
[1643569731397,6.0,92.91,92.75,7.4164194]
[1643569731398,39.17589873,92.909,92.75,7.4164194]
[1643569731598,6.0,92.9,92.75,7.4164194]
[1643569731797,106.15,92.899,92.75,7.4164194]
[1643569731997,59.9,92.89,92.76,6.0]
[1643569732201,44.51702692,92.889,92.77,12.82]
[1643569732400,44.51702692,92.889,92.771,0.25]
[1643569732701,0.32467675,92.999,92.771,63.82]
[1643569732702,0.00360786,92.914,92.771,63.82]
[1643569732900,10.0,92.94,92.8,160.26]
[1643569733097,53.826,93.01,92.83,16.148]
[1643569733298,53.826,93.01,92.791,0.31414885]
[1643569733299,53.826,93.01,92.841,105.9]
[1643569733498,53.826,93.01,92.85,18.82]
[1643569733699,33.10996152,93.009,92.85,18.82]
[1643569733898,33.10996152,93.009,92.851,0.25]
[1643569734305,22.147,93.0,92.85,34.971]
[1643569734506,22.147,93.0,92.85,28.971]
[1643569734902,22.147,93.0,92.86,6.0]
[1643569735108,22.147,93.0,92.87,12.82]
[1643569735309,22.147,93.0,92.871,0.25]
[1643569735503,14.578549,92.999,92.87,12.82]
[1643569735702,14.578549,92.999,92.823,10.47744184]
[1643569735703,105.9,92.969,92.823,10.47744184]
[1643569735903,46.74373784,92.968,92.83,12.82]
[1643569736204,105.9,92.959,92.81,12.82]
[1643569736405,105.9,92.959,92.74,160.26]
[1643569736406,26.937522,92.958,92.74,160.26]
[1643569736604,0.32447909,92.928,92.748,0.3]
[1643569736805,12.82,92.92,92.74,0.3]
[1643569737005,18.82,92.92,92.74,0.3]
[1643569737206,55.08971245,92.919,92.74,0.3]
[1643569737404,26.437522,92.918,92.74,0.3]
[1643569737605,16.175,92.88,92.74,0.3]
[1643569737809,42.74732054,92.879,92.74,6.3]
[1643569738005,42.74732054,92.879,92.75,12.82]
[1643569738206,0.25,92.88,92.75,12.82]
[1643569738207,0.25,92.88,92.751,0.3]
[1643569738406,28.14191899,92.936,92.76,6.0]
[1643569738613,6.0,92.93,92.78,16.164]
[1643569738825,105.9,92.929,92.781,0.2]
[1643569739025,22.16,92.92,92.781,0.2]
[1643569739225,42.85360555,92.919,92.781,0.2]
[1643569739628,105.9,92.918,92.79,6.0]
[1643569739828,105.9,92.918,92.79,18.82]
[1643569740028,105.9,92.918,92.791,0.2]
[1643569740228,105.9,92.909,92.8,16.16]
[1643569740430,105.9,92.909,92.801,0.1]
[1643569741230,105.9,92.909,92.81,12.82]
[1643569741428,105.9,92.909,92.811,0.1]
[1643569742832,38.97057385,92.899,92.811,0.1]
[1643569743031,6.0,92.89,92.802,0.1]
[1643569743229,38.97057385,92.899,92.802,0.1]
[1643569743631,105.9,92.898,92.802,0.1]
[1643569744633,105.9,92.898,92.81,12.82]
[1643569744831,105.9,92.898,92.81,13.07]
[1643569745031,105.9,92.898,92.811,0.1]
[1643569748436,16.165,92.89,92.811,0.1]
[1643569748731,105.9,92.898,92.811,0.1]
[1643569750539,105.9,92.898,92.82,16.157]
[1643569750741,105.9,92.898,92.821,0.1]
[1643569751335,105.9,92.898,92.82,0.25]
[1643569751737,105.9,92.898,92.811,0.1]
[1643569752642,22.165,92.89,92.811,0.1]
[1643569752839,22.415,92.89,92.781,0.2]
[1643569753037,22.415,92.89,92.771,0.2]
[1643569754439,22.415,92.89,92.754,0.3]
[1643569754641,22.415,92.89,92.764,2.9845181]
[1643569754840,14.093932,92.889,92.764,2.9845181]
[1643569755041,16.175,92.86,92.746,2.9845181]
[1643569755240,41.82054765,92.859,92.746,2.9845181]
[1643569755440,6.0,92.85,92.736,2.9845181]
[1643569755742,6.0,92.85,92.728,2.9845181]
[1643569756039,16.177,92.83,92.726,5.97060844]
[1643569756241,43.74659436,92.829,92.725,0.27458406]
[1643569756438,43.74659436,92.829,92.726,2.97981079]
[1643569756439,6.0,92.82,92.726,2.97981079]
[1643569756840,105.9,92.819,92.726,2.97981079]
[1643569757239,105.9,92.819,92.732,2.9845181]
[1643569757442,105.9,92.819,92.726,2.97981079]
[1643569757642,105.9,92.819,92.734,2.9845181]
[1643569757842,105.9,92.819,92.738,2.9845181]
[1643569758039,105.9,92.819,92.737,2.9845181]
[1643569758245,105.9,92.819,92.735,5.96432889]
[1643569758442,105.9,92.819,92.734,0.3]
[1643569758443,22.179,92.81,92.717,0.3]
[1643569758640,38.4113558,92.809,92.673,0.3]
[1643569758841,38.4113558,92.809,92.671,0.3]
[1643569759041,6.0,92.8,92.688,2.39588448]
[1643569759242,0.25,92.8,92.69,20.94917298]
[1643569759440,6.25,92.8,92.7,16.178]
[1643569759641,6.25,92.8,92.701,0.3]
[1643569759840,6.25,92.8,92.68,12.82]
[1643569759841,105.9,92.799,92.681,0.3]
[1643569760042,6.0,92.79,92.681,0.3]
[1643569760242,45.50444167,92.789,92.671,0.3]
[1643569760642,16.186,92.78,92.671,0.3]
[1643569760845,16.436,92.78,92.671,0.3]
[1643569761245,14.93322,92.745,92.67,11.89458406]
[1643569761443,45.70034953,92.744,92.671,2.97166598]
[1643569761645,14.93322,92.735,92.671,2.97166598]
[1643569761842,14.93322,92.735,92.68,16.183]
[1643569762044,14.93322,92.735,92.681,2.97166598]
[1643569762244,14.93322,92.735,92.681,5.36828309]
[1643569762445,14.93322,92.735,92.681,2.39661711]
[1643569762644,14.93322,92.735,92.682,5.36381353]
[1643569762943,105.9,92.788,92.683,11.0963694]
[1643569763144,16.177,92.82,92.69,34.997]
[1643569763346,73.054,92.92,92.69,34.997]
[1643569763347,24.640591,92.818,92.69,35.247]
[1643569763645,24.640591,92.818,92.691,32.17217922]
[1643569763844,24.640591,92.818,92.692,2.96719642]
[1643569764045,35.53610564,92.817,92.7,6.0]
[1643569764246,14.086354,92.816,92.71,12.82]
[1643569764646,14.086354,92.816,92.711,2.9655525]
[1643569764847,14.086354,92.816,92.72,16.175]
[1643569765046,14.086354,92.816,92.72,15.675]
[1643569765245,14.086354,92.816,92.712,9.06806186]
[1643569765447,14.086354,92.816,92.711,2.9655525]
[1643569765648,14.086354,92.816,92.692,9.06806186]
[1643569765950,6.0,92.81,92.676,9.06806186]
[1643569766149,14.086354,92.809,92.676,9.06806186]
[1643569766349,16.182,92.79,92.68,16.182]
[1643569766550,59.87463051,92.789,92.681,0.1]
[1643569766751,6.0,92.78,92.681,3.06975239]
[1643569766954,14.089389,92.788,92.681,3.06975239]
[1643569767154,0.25,92.78,92.682,9.06806186]
[1643569767352,6.0,92.778,92.682,9.16806186]
[1643569767553,44.0,92.768,92.661,9.06806186]
[1643569767753,44.0,92.768,92.574,36.87357023]
[1643569767754,6.25,92.77,92.603,0.1]
[1643569767954,6.0,92.758,92.604,0.1]
[1643569768152,6.0,92.758,92.605,0.1]
[1643569768153,105.9,92.757,92.605,0.1]
[1643569768353,129.69567382,92.757,92.601,0.1]
[1643569768561,6.0,92.747,92.61,12.82]
[1643569768754,35.70253261,92.746,92.624,18.76909775]
[1643569768955,35.70253261,92.746,92.624,16.37508717]
[1643569769560,35.70253261,92.746,92.62,12.82]
[1643569769753,16.188,92.74,92.63,16.192]
[1643569769954,16.188,92.74,92.625,6.0]
[1643569770154,16.188,92.74,92.62,12.82]
[1643569770455,105.9,92.739,92.62,12.82]
[1643569770662,105.9,92.739,92.621,2.40227373]
[1643569770855,16.19,92.73,92.63,22.19]
[1643569771058,42.65590258,92.729,92.631,6.0]
[1643569771255,42.65590258,92.729,92.63,29.26]
[1643569771455,105.9,92.728,92.63,13.07]
[1643569771656,14.081808,92.727,92.63,12.82]
[1643569771857,16.192,92.72,92.63,29.012]
[1643569772057,16.192,92.72,92.631,2.40227373]
[1643569772257,105.9,92.719,92.631,2.40227373]
[1643569772459,105.9,92.719,92.61,12.82]
[1643569772882,16.196,92.7,92.61,12.82]
[1643569773282,0.25,92.7,92.615,7.41860444]
[1643569773483,105.9,92.719,92.615,5.0]
[1643569773688,6.0,92.709,92.615,5.0]
[1643569773985,105.9,92.708,92.615,5.0]
[1643569774184,105.9,92.699,92.615,5.0]
[1643569774386,6.0,92.698,92.615,5.0]
[1643569774589,37.40773565,92.687,92.615,5.0]
[1643569774984,160.26,92.8,92.615,5.0]
[1643569775184,53.977,92.73,92.62,16.193]
[1643569775391,39.056585,92.729,92.62,29.013]
[1643569775585,39.048154,92.728,92.621,34.34250531]
[1643569775786,39.048154,92.728,92.63,6.0]
[1643569775986,72.52391277,92.727,92.631,6.0]
[1643569776189,14.081805,92.726,92.631,6.0]
[1643569776586,105.9,92.719,92.631,6.0]
[1643569776786,20.053134,92.718,92.63,13.07]
[1643569777387,105.9,92.717,92.63,12.82]
[1643569777591,48.598415,92.716,92.63,12.82]
[1643569777788,16.194,92.71,92.63,12.82]
[1643569777994,41.51077402,92.708,92.63,12.82]
[1643569778193,104.6921296,92.707,92.63,12.82]
[1643569778394,34.51661,92.706,92.63,12.82]
[1643569778793,34.51661,92.706,92.63,13.07]
[1643569778990,34.51661,92.706,92.63,12.82]
[1643569779191,34.51661,92.706,92.601,0.1]
[1643569779392,104.6921296,92.707,92.61,12.82]
[1643569779594,104.6921296,92.705,92.61,12.82]
[1643569779794,34.51661,92.704,92.61,12.82]
[1643569780391,68.924897,92.704,92.61,12.82]
[1643569780593,62.953568,92.704,92.61,13.07]
[1643569780792,104.6921296,92.705,92.62,16.194]
[1643569780793,16.196,92.7,92.62,16.194]
[1643569780998,62.953568,92.704,92.62,16.194]
[1643569781194,0.25,92.7,92.62,16.194]
[1643569781401,48.493129,92.699,92.62,16.444]
[1643569781599,45.558248,92.704,92.62,16.444]
[1643569781795,104.6921296,92.705,92.621,2.42641466]
[1643569781997,104.6921296,92.705,92.64,16.189]
[1643569783698,104.6921296,92.705,92.63,12.82]
[1643569784503,104.6921296,92.705,92.64,1.48655816]
[1643569785000,104.6921296,92.705,92.641,1.48655816]
[1643569785201,104.6921296,92.705,92.637,1.48655816]
[1643569785602,107.921,93.01,92.649,1.48655816]
[1643569785603,39.38555243,92.768,92.649,1.48655816]
[1643569785801,39.38555243,92.768,92.657,1.48655816]
[1643569786001,28.19214383,92.768,92.675,1.48655816]
[1643569786203,77.8668,92.828,92.68,12.82]
[1643569786404,75.97866033,92.825,92.685,7.48655816]
[1643569786602,75.97866033,92.825,92.702,1.48655816]
[1643569786803,16.176,92.82,92.71,12.82]
[1643569787004,125.894016,92.819,92.71,18.82]
[1643569787202,125.894016,92.819,92.711,10.06108037]
[1643569787402,19.994016,92.818,92.72,16.176]
[1643569787603,19.994016,92.818,92.72,28.996]
[1643569787805,105.9,92.819,92.721,10.06108037]
[1643569788002,105.9,92.819,92.721,12.49603664]
[1643569788204,105.9,92.819,92.731,6.0]
[1643569788602,105.9,92.819,92.74,12.82]
[1643569788801,105.9,92.819,92.74,13.07]
[1643569789005,105.9,92.819,92.741,10.05869704]
[1643569789404,105.9,92.819,92.74,13.07]
[1643569790003,105.9,92.819,92.75,16.169]
[1643569790204,105.9,92.819,92.74,13.07]
[1643569791005,105.9,92.819,92.74,29.242]
[1643569791206,105.9,92.819,92.74,28.992]
[1643569791405,105.9,92.819,92.74,29.242]
[1643569791608,105.9,92.819,92.74,12.82]
[1643569791807,105.9,92.819,92.728,1.48655816]
[1643569792008,33.6813285,92.808,92.714,1.48655816]
[1643569792310,16.181,92.79,92.72,0.25]
[1643569792508,16.181,92.79,92.72,13.07]
[1643569792709,105.9,92.807,92.721,10.48009458]
[1643569792909,105.9,92.807,92.721,11.96665274]
[1643569792910,38.48167868,92.794,92.721,11.96665274]
[1643569793108,38.48167868,92.794,92.72,12.82]
[1643569793409,38.48167868,92.794,92.709,1.48655816]
[1643569793609,16.186,92.76,92.678,24.10445816]
[1643569793810,36.17206103,92.759,92.678,1.48655816]
[1643569794009,36.17206103,92.759,92.673,1.48655816]
[1643569794213,36.17206103,92.759,92.672,1.48655816]
[1643569794508,36.17206103,92.759,92.681,1.48655816]
[1643569794913,36.17206103,92.759,92.672,1.48655816]
[1643569795113,16.186,92.75,92.677,1.48655816]
[1643569795316,16.436,92.75,92.677,1.48655816]
[1643569795512,16.436,92.75,92.67,13.07]
[1643569795912,16.436,92.75,92.67,14.30655816]
[1643569796212,16.436,92.75,92.673,1.48655816]
[1643569796612,105.9,92.749,92.675,1.48655816]
[1643569796815,105.9,92.749,92.681,1.48655816]
[1643569797014,105.9,92.749,92.68,12.82]
[1643569797414,6.0,92.784,92.68,12.82]
[1643569797615,3.5,92.815,92.693,1.48655816]
[1643569797818,14.147778,92.814,92.702,1.48655816]
[1643569798015,14.147778,92.814,92.681,27.39290405]
[1643569798016,14.147778,92.814,92.72,16.174]
[1643569798216,14.147778,92.814,92.71,12.82]
[1643569798217,105.9,92.813,92.71,12.82]
[1643569798417,34.93729676,92.811,92.71,12.82]
[1643569798617,37.262048,92.81,92.71,12.82]
[1643569799040,30.32277,92.81,92.71,12.82]
[1643569799242,120.04777,92.809,92.71,12.82]
[1643569799642,105.9,92.809,92.711,0.25]
[1643569799941,105.9,92.809,92.719,1.48655816]
[1643569800140,105.9,92.809,92.72,12.82]
[1643569800341,105.9,92.809,92.73,16.174]
[1643569800742,34.93729676,92.811,92.74,12.82]
[1643569801142,34.93729676,92.811,92.741,0.25]
[1643569801946,53.91,92.85,92.741,0.25]
[1643569802147,11.18695835,92.886,92.741,0.25]
[1643569802346,1.42513055,92.907,92.744,1.48655816]
[1643569802547,1.42513055,92.915,92.752,1.48655816]
[1643569802748,11.1844,92.926,92.79,16.163]
[1643569802749,16.164,92.88,92.79,16.163]
[1643569802946,40.36889232,92.879,92.79,16.163]
[1643569803349,40.36889232,92.879,92.791,0.25]
[1643569803548,40.36889232,92.879,92.79,16.163]
[1643569803549,40.36889232,92.879,92.79,28.983]
[1643569803748,105.9,92.878,92.79,28.983]
[1643569803948,16.165,92.87,92.79,28.983]
[1643569804151,40.36889232,92.879,92.791,0.25]
[1643569804352,40.36889232,92.879,92.8,16.162]
[1643569804749,1.42513055,92.94,92.81,12.82]
[1643569804952,1.42513055,92.952,92.81,18.82]
[1643569805155,24.6398,92.96,92.811,16.68488332]
[1643569805352,78.4828,92.96,92.83,16.154]
[1643569805554,11.17907057,92.955,92.84,12.82]
[1643569805754,24.6398,92.96,92.84,12.82]
[1643569806149,0.0001,92.902,92.841,11.14988332]
[1643569806351,0.0001,92.902,92.86,16.144]
[1643569806557,0.0001,92.902,92.87,12.82]
[1643569807155,0.0001,92.902,92.85,12.82]
[1643569807352,0.0001,92.902,92.851,0.25]
[1643569807553,0.0001,92.902,92.859,13.54]
[1643569807754,1.42513055,92.988,92.87,12.82]
[1643569807963,1.42513055,92.988,92.87,12.62046263]
[1643569808155,1.42513055,92.988,92.88,166.26]
[1643569808355,0.4,93.056,92.89,12.82]
[1643569808356,16.146,92.98,92.89,12.82]
[1643569808755,44.44321375,92.979,92.89,12.82]
[1643569809556,44.44321375,92.979,92.89,25.14999443]
[1643569809759,44.44321375,92.979,92.891,2.70120718]
[1643569809957,44.44321375,92.979,92.89,25.14999443]
[1643569810758,44.44321375,92.979,92.891,0.25]
[1643569811460,0.2,93.051,92.9,16.144]
[1643569811660,1.42513055,93.055,92.9,22.144]
[1643569811661,1.62513055,93.055,92.9,22.144]
[1643569811960,0.2,93.055,92.91,12.82]
[1643569812159,0.4,93.056,92.91,12.82]
[1643569812362,0.4,93.056,92.92,6.0]
[1643569812559,16.138,93.03,92.94,16.134]
[1643569812760,0.2,93.055,92.95,12.82]
[1643569812963,1.42513055,93.091,92.95,18.82]
[1643569813160,0.4,93.105,92.951,0.25]
[1643569813362,0.4,93.105,92.951,28.46970554]
[1643569813564,16.129,93.08,92.952,12.32970554]
[1643569813762,0.4,93.079,92.95,12.82]
[1643569813962,0.4,93.086,92.95,12.82]
[1643569814165,6.0,93.077,92.95,12.82]
[1643569814564,44.92564033,93.067,92.95,12.82]
[1643569814763,0.65,93.066,92.95,12.82]
[1643569814966,16.137,93.05,92.95,28.957]
[1643569815165,0.2,93.049,92.95,28.957]
[1643569815365,1.42513055,93.113,92.96,6.0]
[1643569815565,11.16290689,93.116,92.97,12.82]
[1643569815770,0.4,93.115,92.971,74.007]
[1643569815966,0.4,93.127,92.98,6.0]
[1643569816167,45.76563094,93.087,92.99,12.82]
[1643569816367,0.4,93.086,93.0,12.82]
[1643569817792,0.4,93.086,92.94,160.26]
[1643569817998,2.95669142,93.085,92.92,160.26]
[1643569818192,0.65,93.086,92.95,12.82]
[1643569818392,0.65,93.086,92.96,12.82]
[1643569818696,16.129,93.08,92.97,28.953]
[1643569818893,6.0,93.077,92.97,16.133]
[1643569819094,43.39788529,93.069,92.98,12.82]
[1643569819394,106.55,93.068,92.855,0.53]
[1643569819594,6.0,93.058,92.95,12.82]
[1643569819793,0.25,93.057,92.96,12.82]
[1643569820493,6.0,93.051,92.96,12.82]
[1643569820695,45.00969332,93.05,92.96,12.82]
[1643569820993,0.2,93.049,92.96,28.954]
[1643569821596,0.2,93.049,92.961,14.60470554]
[1643569821793,0.2,93.049,92.96,12.82]
[1643569821994,22.135,93.04,92.96,12.82]
[1643569822597,22.135,93.04,92.94,12.82]
[1643569822800,0.25,93.039,92.91,12.82]
[1643569822996,0.25,93.039,92.864,104.5555]
[1643569822997,36.41143511,93.03,92.864,104.5555]
[1643569823198,36.41143511,93.03,92.89,12.82]
[1643569823400,6.0,93.02,92.89,12.82]
[1643569823597,46.6643356,92.989,92.865,31.67053345]
[1643569823796,0.25,92.988,92.871,384.19387865]
[1643569824005,105.9,92.978,92.871,384.19387865]
[1643569824298,14.335633,92.977,92.871,384.19387865]
[1643569824496,6.0,92.967,92.871,384.19387865]
[1643569824697,16.156,92.96,92.87,12.82]
[1643569824897,0.25,92.959,92.87,12.82]
[1643569825097,6.0,92.956,92.87,12.82]
[1643569825303,0.25,92.955,92.87,12.82]
[1643569825698,43.9874577,92.949,92.87,28.971]
[1643569825898,6.222951,92.948,92.87,12.82]
[1643569826098,5.972951,92.947,92.87,12.82]
[1643569826298,0.25,92.946,92.87,12.82]
[1643569826598,106.15,92.946,92.87,12.82]
[1643569826800,16.154,92.94,92.87,12.82]
[1643569827000,19.74618,92.939,92.87,12.82]
[1643569827198,19.74618,92.938,92.87,12.82]
[1643569827399,0.25,92.937,92.87,12.82]
[1643569827602,148.66315395,92.935,92.87,12.82]
[1643569827805,13.728035,92.934,92.87,12.82]
[1643569828103,16.156,92.93,92.87,12.82]
[1643569828302,13.728035,92.929,92.87,12.82]
[1643569828503,13.478035,92.928,92.87,12.82]
[1643569828703,105.9,92.927,92.87,12.82]
[1643569828904,13.478035,92.926,92.87,12.82]
[1643569829107,13.478035,92.926,92.795,1.48655816]
[1643569829303,16.162,92.9,92.83,12.82]
[1643569829506,39.66772783,92.899,92.83,12.82]
[1643569829704,39.91772783,92.899,92.83,12.82]
[1643569830606,16.162,92.89,92.83,12.82]
[1643569830804,0.25,92.889,92.83,12.82]
[1643569831806,14.083359,92.888,92.83,12.82]
[1643569832006,6.0,92.878,92.78,16.166]
[1643569832205,6.0,92.878,92.79,12.82]
[1643569832406,6.0,92.869,92.79,12.82]
[1643569832606,0.25,92.877,92.79,12.82]
[1643569833009,6.0,92.869,92.778,6.0]
[1643569833206,6.0,92.869,92.782,6.0]
[1643569833407,0.25,92.868,92.782,6.0]
[1643569833608,6.0,92.86,92.782,6.0]
[1643569833808,42.03196498,92.859,92.783,17.28755013]
[1643569834008,42.03196498,92.859,92.783,19.73867896]
[1643569834409,42.03196498,92.859,92.784,2.45112883]
[1643569834612,42.03196498,92.859,92.784,17.28755013]
[1643569834810,105.9,92.858,92.78,12.82]
[1643569835210,16.169,92.85,92.78,12.82]
[1643569835409,0.25,92.849,92.78,12.82]
[1643569835615,41.78196498,92.859,92.78,12.82]
[1643569837112,105.9,92.909,92.781,37.33537324]
[1643569837310,105.9,92.909,92.781,37.58537324]
[1643569837514,6.0,92.898,92.782,31.98446919]
[1643569837709,6.0,92.898,92.782,49.27201932]
[1643569837910,44.53709653,92.907,92.79,16.164]
[1643569838115,44.53709653,92.907,92.8,12.82]
[1643569838512,44.53709653,92.907,92.801,11.93664608]